fUSD/lending_fUSD_20250421
["ID","MTS","AMOUNT","RATE_DAILY","PERIOD"]
[358504673,1745219443169,-500.0,0.00063013,120]
[358504675,1745219443178,-500.0,0.00063013,120]
[358504677,1745219443187,-516.33079572,0.00063013,120]
[358504678,1745219443197,-500.0,0.00063013,120]
[358504679,1745219443205,-500.0,0.00063013,120]
[358504681,1745219443215,-500.0,0.00063013,120]
[358504683,1745219443224,-500.0,0.00063013,120]
[358504685,1745219443233,-500.0,0.00063013,120]
[358504687,1745219443242,-500.0,0.00063013,120]
[358504689,1745219443250,-151.0,0.00063013,120]
[358504691,1745219443258,-500.0,0.00063013,120]
[358504693,1745219443267,-500.0,0.00063013,120]
[358504695,1745219443276,-550.48563296,0.00063013,120]
[358504697,1745219443285,-500.0,0.00063013,120]
[358504698,1745219443294,-500.0,0.00063013,120]
[358504699,1745219443303,-990.68,0.00063013,120]
[358504700,1745219443313,-990.68,0.00063013,120]
[358504701,1745219443322,-151.0,0.00063013,120]
[358504702,1745219443332,-990.68,0.00063013,120]
[358504703,1745219443341,-990.68,0.00063013,120]
[358504704,1745219443350,-990.68,0.00063013,120]
[358504705,1745219443359,-500.0,0.00063013,120]
[358504706,1745219443368,-990.68,0.00063013,120]
[358504707,1745219443377,-990.68,0.00063013,120]
[358504708,1745219443387,-990.68,0.00063013,120]
[358504709,1745219443396,-990.68,0.00063013,120]
[358504710,1745219443406,-500.0,0.00063013,120]
[358504711,1745219443418,-500.0,0.00063013,120]
[358504712,1745219443429,-508.17724565,0.00063013,30]
[358504713,1745219443439,-502.3897624,0.00063013,120]
[358504714,1745219443447,-500.0,0.00063013,120]
[358504715,1745219443457,-500.0,0.00063013,120]
[358504716,1745219443466,-500.0,0.00063013,120]
[358504717,1745219443475,-500.0,0.00063013,120]
[358504718,1745219443485,-500.0,0.00063013,120]
[358504719,1745219443494,-500.0,0.00063013,120]
[358504720,1745219443503,-151.0,0.00063013,120]
[358504721,1745219443512,-515.90655005,0.00063013,120]
[358504722,1745219443521,-500.0,0.00063013,120]
[358504723,1745219443531,-563.49,0.00063013,120]
[358504724,1745219443540,-500.0,0.00063013,120]
[358504725,1745219443549,-500.0,0.00063013,120]
[358504726,1745219443559,-500.0,0.00063013,120]
[358504727,1745219443568,-500.0,0.00063013,120]
[358504728,1745219443579,-506.11782053,0.00063013,120]
[358504729,1745219443588,-500.0,0.00063013,120]
[358504730,1745219443598,-500.0,0.00063013,120]
[358504731,1745219443607,-500.0,0.00063013,120]
[358504732,1745219443616,-500.0,0.00063013,120]
[358504733,1745219443625,-500.0,0.00063013,120]
[358504734,1745219443635,-506.57271024,0.00063013,120]
[358504735,1745219443644,-500.0,0.00063013,120]
[358504736,1745219443653,-501.46849,0.00063013,120]
[358504737,1745219443662,-500.0,0.00063013,120]
[358504738,1745219443671,-500.0,0.00063013,120]
[358504739,1745219443681,-502.04150899,0.00063013,120]
[358504740,1745219443690,-501.46849,0.00063013,120]
[358504741,1745219443699,-500.0,0.00063013,120]
[358504742,1745219443708,-542.87896645,0.00063013,120]
[358504743,1745219443717,-532.26604069,0.00063013,120]
[358504744,1745219443728,-500.0,0.00063013,120]
[358504745,1745219443739,-500.0,0.00063013,120]
[358504746,1745219443748,-899.58,0.00063013,120]
[358504747,1745219443757,-500.0,0.00063013,120]
[358504748,1745219443766,-500.0,0.00063013,120]
[358504749,1745219443775,-500.0,0.00063013,120]
[358504750,1745219443785,-500.0,0.00063013,120]
[358504751,1745219443794,-507.21837456,0.00063013,120]
[358504752,1745219443805,-500.0,0.00063013,120]
[358504753,1745219443815,-500.0,0.00063013,120]
[358504754,1745219443823,-500.0,0.00063013,120]
[358504755,1745219443833,-500.0,0.00063013,120]
[358504756,1745219443842,-525.31475404,0.00063013,120]
[358504757,1745219443851,-500.0,0.00063013,120]
[358504758,1745219443860,-500.0,0.00063013,8]
[358504759,1745219443869,-169.70041414,0.00063013,58]
[358504760,1745219443879,-500.0,0.00063013,120]
[358504761,1745219443888,-500.0,0.00063013,120]
[358504762,1745219443898,-321.77997201,0.00063013,120]
[358504763,1745219443908,-500.0,0.00063013,120]
[358504764,1745219443918,-500.0,0.00063013,120]
[358504765,1745219443927,-500.0,0.00063013,120]
[358504766,1745219443936,-500.0,0.00063013,120]
[358504767,1745219443945,-500.0,0.00063013,120]
[358504768,1745219443954,-500.0,0.00063013,120]
[358504769,1745219443963,-500.0,0.00063013,120]
[358504770,1745219443972,-500.0,0.00063013,120]
[358504771,1745219443981,-524.86949902,0.00063013,120]
[358504772,1745219443990,-500.0,0.00063013,120]
[358504773,1745219443999,-588.5342434,0.00063013,120]
[358504774,1745219444009,-500.0,0.00063013,120]
[358504775,1745219444018,-500.0,0.00063013,120]
[358504776,1745219444027,-500.0,0.00063013,120]
[358504777,1745219444036,-500.0,0.00063013,120]
[358504778,1745219444045,-500.0,0.00063013,120]
[358504779,1745219444054,-581.20786552,0.00063013,120]
[358504780,1745219444063,-566.30084486,0.00063013,120]
[358504781,1745219444072,-500.0,0.00063013,120]
[358504782,1745219444082,-500.0,0.00063013,120]
[358504783,1745219444091,-500.0,0.00063013,120]
[358504784,1745219444101,-533.26390759,0.00063013,120]
[358504785,1745219444110,-411.2321765,0.00063013,120]
[358504786,1745219444120,-500.0,0.00063013,120]
[358504787,1745219444129,-793.36,0.00063013,120]
[358504788,1745219444138,-523.30995052,0.00063013,120]
[358504789,1745219444147,-500.0,0.00063013,120]
[358504790,1745219444157,-500.0,0.00063013,120]
[358504791,1745219444166,-602.57910325,0.00063013,120]
[358504792,1745219444175,-598.26690595,0.00063013,120]
[358504793,1745219444184,-538.0593284,0.00063013,120]
[358504794,1745219444193,-187.32987917,0.00063013,120]
[358504795,1745219444203,-500.0,0.00063013,120]
[358504796,1745219444212,-500.0,0.00063013,120]
[358504797,1745219444221,-500.0,0.00063013,120]
[358504798,1745219444230,-500.0,0.00063013,120]
[358504799,1745219444239,-582.29981595,0.00063013,120]
[358504800,1745219444248,-621.39169438,0.00063013,120]
[358504801,1745219444257,-500.0,0.00063013,120]
[358504802,1745219444266,-500.0,0.00063013,120]
[358504803,1745219444275,-500.0,0.00063013,120]
[358504804,1745219444285,-1360.42,0.00063013,2]
[358504805,1745219444294,-500.0,0.00063013,120]
[358504806,1745219444304,-500.0,0.00063013,120]
[358504807,1745219444313,-592.02,0.00063013,120]
[358504808,1745219444322,-500.0,0.00063013,120]
[358504809,1745219444333,-500.0,0.00063013,120]
[358504810,1745219444342,-500.0,0.00063013,120]
[358504811,1745219444351,-500.0,0.00063013,120]
[358504812,1745219444360,-341.0846403,0.00063013,120]
[358504813,1745219444370,-151.0,0.00063013,120]
[358504814,1745219444379,-627.4494026,0.00063013,120]
[358504815,1745219444388,-500.0,0.00063013,120]
[358504816,1745219444397,-500.0,0.00063013,120]
[358504817,1745219444405,-500.0,0.00063013,120]
[358504818,1745219444415,-267.33566992,0.00063013,120]
[358504819,1745219444424,-500.0,0.00063013,120]
[358504820,1745219444433,-515.3274359,0.00063013,120]
[358504821,1745219444443,-511.82518281,0.00063013,120]
[358504822,1745219444452,-500.0,0.00063013,120]
[358504823,1745219444462,-500.0,0.00063013,120]
[358504824,1745219444471,-500.0,0.00063013,120]
[358504825,1745219444480,-500.0,0.00063013,120]
[358504826,1745219444489,-500.0,0.00063013,120]
[358504827,1745219444499,-500.0,0.00063013,120]
[358504828,1745219444508,-500.0,0.00063013,120]
[358504829,1745219444517,-500.0,0.00063013,120]
[358504830,1745219444527,-500.0,0.00063013,120]
[358504831,1745219444536,-500.0,0.00063013,120]
[358504832,1745219444545,-500.0,0.00063013,120]
[358504833,1745219444555,-500.0,0.00063013,120]
[358504834,1745219444564,-500.0,0.00063013,120]
[358504835,1745219444573,-5933.52,0.00063013,7]
[358504836,1745219444587,-500.0,0.00063013,120]
[358504837,1745219444597,-551.29144262,0.00063013,120]
[358504838,1745219444606,-500.0,0.00063013,120]
[358504839,1745219444615,-500.0,0.00063013,120]
[358504840,1745219444624,-500.0,0.00063013,120]
[358504841,1745219444633,-565.36,0.00063013,120]
[358504842,1745219444642,-522.14069282,0.00063013,120]
[358504843,1745219444651,-500.0,0.00063013,120]
[358504844,1745219444661,-509.67213527,0.00063013,120]
[358504845,1745219444672,-500.0,0.00063013,120]
[358504846,1745219444683,-500.0,0.00063013,120]
[358504847,1745219444691,-500.0,0.00063013,120]
[358504848,1745219444701,-500.0,0.00063013,120]
[358504849,1745219444711,-510.48658596,0.00063013,120]
[358504850,1745219444720,-517.95427251,0.00063013,120]
[358504851,1745219444731,-164.686311,0.00063013,120]
[358504852,1745219444741,-500.0,0.00063013,120]
[358504853,1745219444750,-500.0,0.00063013,120]
[358504854,1745219444760,-500.0,0.00063013,120]
[358504855,1745219444771,-500.0,0.00063013,120]
[358504856,1745219444781,-628.10016536,0.00063073,15]
[358504857,1745219444791,-509.00395555,0.00063073,15]
[358504858,1745219444800,-602.71137467,0.00063073,15]
[358504859,1745219444811,-502.62779402,0.00063073,15]
[358504860,1745219444820,-174.24,0.000631,60]
[358504861,1745219444831,-151.0,0.00063206,2]
[358504862,1745219444840,-178.93418074,0.00063369,16]
[358504863,1745219444850,-2077.646,0.00063385,120]
[358504864,1745219444859,-1352.038,0.00063385,120]
[358504865,1745219444869,-2720.73816765,0.00063456,15]
[358504866,1745219444878,-648.94718772,0.00063456,15]
[358504867,1745219444887,-990.68,0.0006346,120]
[358504868,1745219444897,-990.68,0.0006346,120]
[358504869,1745219444907,-151.0,0.00063461,120]
[358504870,1745219445005,-155.061697,0.00063461,120]
[358504871,1745219445026,-152.800737,0.00063461,120]
[358504872,1745219445036,-151.0,0.00063461,2]
[358504873,1745219445045,-151.627102,0.00063461,120]
[358504874,1745219445055,-151.0,0.00063461,120]
[358504875,1745219445064,-151.0,0.00063461,120]
[358504876,1745219445074,-501.46849,0.00063461,120]
[358504877,1745219445085,-501.46849,0.00063461,120]
[358504878,1745219445094,-500.0,0.00063561,120]
[358504879,1745219445103,-395.64281135,0.00063561,120]
[358504880,1745219445112,-500.0,0.00063561,120]
[358504881,1745219445120,-253.80695539,0.00063561,14]
[358504882,1745219445130,-500.0,0.00063561,120]
[358504883,1745219445139,-478.9,0.00063561,120]
[358504884,1745219445148,-494.89802384,0.00063561,120]
[358504885,1745219445157,-500.0,0.00063561,120]
[358504886,1745219445166,-500.0,0.00063561,120]
[358504887,1745219445176,-1388.58,0.00063561,120]
[358504888,1745219445185,-498.00699001,0.00063561,120]
[358504889,1745219445195,-500.0,0.00063561,120]
[358504890,1745219445206,-936.6,0.00063561,120]
[358504891,1745219445215,-500.0,0.00063561,120]
[358504892,1745219445224,-500.0,0.00063561,120]
[358504893,1745219445233,-500.0,0.00063561,120]
[358504894,1745219445242,-533.96908051,0.00063561,120]
[358504895,1745219445251,-500.0,0.00063561,120]
[358504896,1745219445260,-500.0,0.00063561,120]
[358504897,1745219445269,-538.61071507,0.00063561,120]
[358504898,1745219445278,-500.0,0.00063561,120]
[358504899,1745219445288,-500.0,0.00063561,120]
[358504900,1745219445297,-930.49,0.00063561,120]
[358504901,1745219445307,-500.0,0.00063561,120]
[358504902,1745219445316,-500.0,0.00063561,120]
[358504903,1745219445327,-500.0,0.00063561,120]
[358504904,1745219445336,-500.0,0.00063561,120]
[358504905,1745219445345,-500.0,0.00063561,120]
[358504906,1745219445355,-500.0,0.00063561,120]
[358504907,1745219445364,-500.0,0.00063561,120]
[358504908,1745219445373,-500.0,0.00063561,2]
[358504909,1745219445382,-500.0,0.00063561,120]
[358504910,1745219445391,-500.0,0.00063561,120]
[358504911,1745219445401,-500.0,0.00063561,12]
[358504912,1745219445410,-500.0,0.00063561,30]
[358504913,1745219445420,-743.91,0.00063561,120]
[358504914,1745219445429,-189.55287823,0.00063561,120]
[358504915,1745219445438,-500.0,0.00063561,120]
[358504916,1745219445447,-500.0,0.00063561,120]
[358504917,1745219445456,-500.0,0.00063561,120]
[358504918,1745219445465,-500.0,0.00063561,120]
[358504919,1745219445474,-500.0,0.00063561,120]
[358504920,1745219445483,-563.49,0.00063561,120]
[358504921,1745219445493,-500.0,0.00063561,120]
[358504922,1745219445502,-500.0,0.00063561,120]
[358504923,1745219445513,-500.0,0.00063561,120]
[358504924,1745219445522,-500.0,0.00063561,120]
[358504925,1745219445531,-899.58,0.00063561,120]
[358504926,1745219445540,-500.0,0.00063561,120]
[358504927,1745219445550,-500.0,0.00063561,120]
[358504928,1745219445559,-500.0,0.00063561,120]
[358504929,1745219445568,-500.0,0.00063561,120]
[358504930,1745219445578,-793.36,0.00063561,120]
[358504931,1745219445587,-500.0,0.00063561,120]
[358504932,1745219445596,-1360.42,0.00063561,2]
[358504933,1745219445605,-500.0,0.00063561,120]
[358504934,1745219445615,-592.02,0.00063561,120]
[358504935,1745219445624,-500.0,0.00063561,120]
[358504936,1745219445634,-500.0,0.00063561,120]
[358504937,1745219445643,-500.0,0.00063561,120]
[358504938,1745219445652,-500.0,0.00063561,120]
[358504939,1745219445662,-500.0,0.00063561,120]
[358504940,1745219445671,-500.0,0.00063561,120]
[358504941,1745219445680,-500.0,0.00063561,120]
[358504942,1745219445689,-500.0,0.00063561,120]
[358504943,1745219445699,-5933.52,0.00063561,7]
[358504944,1745219445708,-500.0,0.00063561,120]
[358504945,1745219445717,-565.36,0.00063561,120]
[358504946,1745219445727,-500.0,0.00063561,120]
[358504947,1745219445740,-1000.0,0.000636,120]
[358504948,1745219445749,-4094.393,0.00063625,120]
[358504949,1745219445758,-4094.393,0.00063625,120]
[358504950,1745219445768,-4094.393,0.00063625,120]
[358504951,1745219445778,-4094.393,0.00063625,120]
[358504952,1745219445787,-4094.394,0.00063625,120]
[358504953,1745219445796,-339.1392005,0.00063816,20]
[358504954,1745219445806,-11700.0,0.000639,23]
[358504955,1745219445816,-614.99,0.00064,120]
[358504956,1745219445826,-530.0,0.00064,120]
[358504957,1745219445835,-1061.49,0.0006405,2]
[358504958,1745219445844,-1000.0,0.00064107,2]
[358504959,1745219445854,-1000.0,0.00064107,2]
[358504960,1745219445864,-1000.0,0.00064107,2]
[358504961,1745219445873,-1000.0,0.00064107,2]
[358504962,1745219445883,-1000.0,0.00064107,2]
[358504963,1745219445891,-500.0,0.00064109,120]
[358504964,1745219445901,-500.0,0.00064109,120]
[358504965,1745219445910,-500.0,0.00064109,120]
[358504966,1745219445921,-1388.58,0.00064109,120]
[358504967,1745219445930,-500.0,0.00064109,120]
[358504968,1745219445939,-151.0,0.00064109,2]
[358504969,1745219445947,-936.6,0.00064109,120]
[358504970,1745219445956,-500.0,0.00064109,120]
[358504971,1745219445965,-500.0,0.00064109,120]
[358504972,1745219445975,-500.0,0.00064109,120]
[358504973,1745219445984,-500.0,0.00064109,120]
[358504974,1745219445993,-930.49,0.00064109,120]
[358504975,1745219446002,-500.0,0.00064109,120]
[358504976,1745219446011,-500.0,0.00064109,120]
[358504977,1745219446020,-500.0,0.00064109,120]
[358504978,1745219446029,-500.0,0.00064109,120]
[358504979,1745219446039,-500.0,0.00064109,120]
[358504980,1745219446049,-500.0,0.00064109,120]
[358504981,1745219446059,-500.0,0.00064109,120]
[358504982,1745219446068,-500.0,0.00064109,2]
[358504983,1745219446077,-500.0,0.00064109,12]
[358504984,1745219446087,-743.91,0.00064109,120]
[358504985,1745219446096,-500.0,0.00064109,120]
[358504986,1745219446105,-500.0,0.00064109,120]
[358504987,1745219446115,-500.0,0.00064109,120]
[358504988,1745219446124,-500.0,0.00064109,120]
[358504989,1745219446133,-500.0,0.00064109,120]
[358504990,1745219446143,-563.49,0.00064109,120]
[358504991,1745219446153,-165.41916488,0.00064109,120]
[358504992,1745219446163,-500.0,0.00064109,120]
[358504993,1745219446172,-500.0,0.00064109,120]
[358504995,1745219446181,-500.0,0.00064109,120]
[358504996,1745219446190,-899.58,0.00064109,120]
[358504997,1745219446199,-500.0,0.00064109,120]
[358504999,1745219446212,-500.0,0.00064109,120]
[358505000,1745219446224,-500.0,0.00064109,120]
[358505001,1745219446238,-500.0,0.00064109,120]
[358505003,1745219446251,-793.36,0.00064109,120]
[358505004,1745219446261,-1360.42,0.00064109,2]
[358505005,1745219446273,-592.02,0.00064109,120]
[358505006,1745219446284,-500.0,0.00064109,120]
[358505007,1745219446296,-500.0,0.00064109,120]
[358505008,1745219446308,-500.0,0.00064109,120]
[358505009,1745219446320,-500.0,0.00064109,120]
[358505010,1745219446331,-500.0,0.00064109,120]
[358505011,1745219446344,-500.0,0.00064109,120]
[358505012,1745219446355,-500.0,0.00064109,120]
[358505013,1745219446366,-5933.52,0.00064109,7]
[358505014,1745219446376,-565.36,0.00064109,120]
[358505015,1745219446387,-500.0,0.00064161,120]
[358505016,1745219446397,-346.5268428,0.0006417,120]
[358505017,1745219446408,-183.042115,0.00064498,120]
[358505018,1745219446420,-539.0091,0.000645,120]
[358505019,1745219446431,-700.0,0.00064543,120]
[358505020,1745219446444,-1000.0,0.00064645,2]
[358505021,1745219446456,-990.68,0.0006465,120]
[358505022,1745219446468,-267.692861,0.00064651,2]
[358505023,1745219446479,-151.0,0.00064651,120]
[358505024,1745219446491,-292.359139,0.00064651,120]
[358505025,1745219446506,-501.46849,0.00064651,120]
[358505026,1745219446516,-501.46849,0.00064651,120]
[358505027,1745219446528,-500.0,0.00064657,120]
[358505028,1745219446541,-500.0,0.00064657,120]
[358505029,1745219446552,-500.0,0.00064657,120]
[358505030,1745219446564,-1388.58,0.00064657,120]
[358505031,1745219446575,-500.0,0.00064657,120]
[358505032,1745219446587,-936.6,0.00064657,120]
[358505033,1745219446598,-161.86,0.00064657,120]
[358505034,1745219446609,-500.0,0.00064657,120]
[358505035,1745219446622,-500.0,0.00064657,120]
[358505036,1745219446634,-500.0,0.00064657,120]
[358505037,1745219446646,-930.49,0.00064657,120]
[358505038,1745219446658,-500.0,0.00064657,120]
[358505039,1745219446669,-500.0,0.00064657,120]
[358505040,1745219446680,-500.0,0.00064657,120]
[358505041,1745219446690,-500.0,0.00064657,120]
[358505042,1745219446700,-500.0,0.00064657,120]
[358505043,1745219446711,-500.0,0.00064657,120]
[358505044,1745219446722,-500.0,0.00064657,120]
[358505045,1745219446739,-500.0,0.00064657,2]
[358505046,1745219446752,-500.0,0.00064657,12]
[358505047,1745219446763,-743.91,0.00064657,120]
[358505048,1745219446775,-500.0,0.00064657,120]
[358505049,1745219446784,-500.0,0.00064657,120]
[358505050,1745219446794,-500.0,0.00064657,120]
[358505051,1745219446805,-500.0,0.00064657,120]
[358505052,1745219446818,-500.0,0.00064657,120]
[358505053,1745219446831,-563.49,0.00064657,120]
[358505054,1745219446843,-500.0,0.00064657,120]
[358505055,1745219446853,-500.0,0.00064657,120]
[358505056,1745219446863,-500.0,0.00064657,120]
[358505057,1745219446874,-899.58,0.00064657,120]
[358505058,1745219446885,-500.0,0.00064657,120]
[358505059,1745219446897,-500.0,0.00064657,120]
[358505060,1745219446908,-500.0,0.00064657,120]
[358505061,1745219446919,-500.0,0.00064657,120]
[358505062,1745219446929,-793.36,0.00064657,120]
[358505063,1745219446940,-1360.42,0.00064657,2]
[358505064,1745219446950,-592.02,0.00064657,120]
[358505065,1745219446961,-500.0,0.00064657,120]
[358505066,1745219446971,-500.0,0.00064657,120]
[358505067,1745219446981,-500.0,0.00064657,120]
[358505068,1745219446991,-500.0,0.00064657,120]
[358505069,1745219447002,-500.0,0.00064657,120]
[358505070,1745219447012,-500.0,0.00064657,120]
[358505071,1745219447024,-500.0,0.00064657,120]
[358505072,1745219447035,-5933.52,0.00064657,7]
[358505073,1745219447047,-565.36,0.00064657,120]
[358505074,1745219447058,-1010.97579771,0.0006466,120]
[358505075,1745219447068,-150.0,0.00064672,120]
[358505076,1745219447080,-500.0,0.00064673,4]
[358505077,1745219447091,-5951.9445223,0.00064673,4]
[358505078,1745219447103,-193830.0644521,0.00064673,4]
[358505079,1745219447114,-18285.0343448,0.00064816,4]
[358505080,1745219447124,-1223.0,0.00064861,60]
[358505081,1745219447136,-1621.0,0.000649,120]
[358505082,1745219447146,-1000.0,0.00064999,120]
[358505083,1745219447157,-72078.4016443,0.00065,120]
[358505084,1745219447168,-200.0,0.00065,120]
[358505085,1745219447179,-532.8094437,0.00065,120]
[358505086,1745219447190,-736.75,0.0006508,2]
[358505087,1745219447200,-1158.22165961,0.00065094,120]
[358505088,1745219447211,-10127.4066545,0.00065203,120]
[358505089,1745219447222,-500.0,0.00065205,120]
[358505090,1745219447233,-500.0,0.00065205,120]
[358505091,1745219447244,-500.0,0.00065205,120]
[358505092,1745219447255,-1388.58,0.00065205,120]
[358505093,1745219447266,-500.0,0.00065205,120]
[358505094,1745219447276,-936.6,0.00065205,120]
[358505095,1745219447287,-500.0,0.00065205,120]
[358505096,1745219447298,-500.0,0.00065205,120]
[358505097,1745219447308,-500.0,0.00065205,120]
[358505098,1745219447319,-930.49,0.00065205,120]
[358505099,1745219447331,-500.0,0.00065205,120]
[358505100,1745219447341,-500.0,0.00065205,120]
[358505101,1745219447352,-500.0,0.00065205,120]
[358505102,1745219447363,-500.0,0.00065205,120]
[358505103,1745219447374,-500.0,0.00065205,120]
[358505104,1745219447384,-500.0,0.00065205,120]
[358505105,1745219447395,-500.0,0.00065205,2]
[358505106,1745219447405,-500.0,0.00065205,12]
[358505107,1745219447415,-743.91,0.00065205,120]
[358505108,1745219447426,-500.0,0.00065205,120]
[358505109,1745219447437,-500.0,0.00065205,120]
[358505110,1745219447447,-500.0,0.00065205,120]
[358505111,1745219447458,-500.0,0.00065205,120]
[358505112,1745219447468,-500.0,0.00065205,120]
[358505113,1745219447479,-563.49,0.00065205,120]
[358505114,1745219447490,-500.0,0.00065205,120]
[358505115,1745219447500,-500.0,0.00065205,120]
[358505116,1745219447511,-500.0,0.00065205,120]
[358505117,1745219447521,-899.58,0.00065205,120]
[358505118,1745219447532,-500.0,0.00065205,120]
[358505119,1745219447543,-500.0,0.00065205,120]
[358505120,1745219447553,-500.0,0.00065205,120]
[358505121,1745219447564,-500.0,0.00065205,120]
[358505122,1745219447575,-793.36,0.00065205,120]
[358505123,1745219447587,-1360.42,0.00065205,2]
[358505124,1745219447598,-592.02,0.00065205,120]
[358505125,1745219447609,-500.0,0.00065205,120]
[358505126,1745219447754,-500.0,0.00065205,120]
[358505127,1745219447770,-500.0,0.00065205,120]
[358505128,1745219447781,-500.0,0.00065205,120]
[358505129,1745219447790,-500.0,0.00065205,120]
[358505130,1745219447800,-500.0,0.00065205,120]
[358505131,1745219447809,-500.0,0.00065205,120]
[358505132,1745219447818,-5933.52,0.00065205,7]
[358505133,1745219447829,-565.36,0.00065205,120]
[358505134,1745219447839,-225.65,0.000653,2]
[358505135,1745219447848,-225.65,0.000653,2]
[358505136,1745219447857,-307.97,0.000653,2]
[358505137,1745219447867,-307.97,0.000653,2]
[358505138,1745219447876,-225.65,0.000654,2]
[358505139,1745219447886,-307.97,0.000654,2]
[358505140,1745219447896,-500.0,0.00065405,120]
[358505141,1745219447907,-1223.0,0.00065529,60]
[358505142,1745219447917,-500.0,0.00065536,120]
[358505143,1745219447926,-153.0,0.00065543,60]
[358505144,1745219447935,-153.0,0.00065543,60]
[358505145,1745219447945,-153.0,0.00065552,60]
[358505146,1745219447954,-153.0,0.00065552,60]
[358505147,1745219447963,-153.0,0.00065561,60]
[358505148,1745219447972,-153.0,0.00065561,60]
[358505149,1745219447982,-153.0,0.0006557,60]
[358505150,1745219447992,-1000.0,0.00065614,2]
[358505151,1745219448001,-1203.92127878,0.0006564,120]
[358505152,1745219448010,-2720.73816765,0.00065644,15]
[358505153,1745219448020,-648.94718772,0.00065644,15]
[358505154,1745219448029,-150.64006794,0.00065679,15]
[358505155,1745219448039,-307.97,0.000657,2]
[358505156,1745219448049,-990.68,0.00065707,120]
[358505157,1745219448059,-151.0,0.00065708,120]
[358505158,1745219448068,-501.46849,0.00065708,120]
[358505159,1745219448078,-501.46849,0.00065708,120]
[358505160,1745219448088,-175.85069784,0.00065753,120]
[358505161,1745219448098,-500.0,0.00065753,120]
[358505162,1745219448107,-500.0,0.00065753,120]
[358505163,1745219448117,-150.0,0.00065753,120]
[358505164,1745219448127,-150.0,0.00065753,120]
[358505165,1745219448136,-150.0,0.00065753,120]
[358505166,1745219448146,-150.0,0.00065753,120]
[358505167,1745219448156,-150.0,0.00065753,120]
[358505168,1745219448165,-151.61035404,0.00065753,120]
[358505169,1745219448174,-1388.58,0.00065753,120]
[358505170,1745219448183,-500.0,0.00065753,120]
[358505171,1745219448193,-936.6,0.00065753,120]
[358505172,1745219448202,-500.0,0.00065753,120]
[358505173,1745219448211,-500.0,0.00065753,120]
[358505174,1745219448220,-500.0,0.00065753,120]
[358505175,1745219448229,-930.49,0.00065753,120]
[358505176,1745219448238,-500.0,0.00065753,120]
[358505177,1745219448247,-500.0,0.00065753,120]
[358505178,1745219448256,-500.0,0.00065753,120]
[358505179,1745219448266,-500.0,0.00065753,120]
[358505180,1745219448275,-500.0,0.00065753,120]
[358505181,1745219448284,-500.0,0.00065753,120]
[358505182,1745219448294,-1096.0,0.00065753,120]
[358505183,1745219448303,-150.0,0.00065753,120]
[358505184,1745219448312,-428.0,0.00065753,120]
[358505185,1745219448322,-500.0,0.00065753,2]
[358505186,1745219448331,-150.0,0.00065753,120]